bitfinex/quotes_ETHUSD_20250414
["timestamp","ask_amount","ask_price","bid_price","bid_amount"]
[1744658642614,6.09952,1639.5,1639.2,6.10038]
[1744658642802,6.10016,1639.3,1639.1,0.7884]
[1744658643007,12.19974,1639.4,1639.1,0.7884]
[1744658643237,6.09981,1639.4,1639.1,6.88929]
[1744658643443,6.09981,1639.4,1639.1,12.99018]
[1744658643631,6.09952,1639.5,1639.2,6.10043]
[1744658643932,13.444612,1639.5,1639.1,6.8893]
[1744658644145,12.19994,1639.4,1639.1,6.8893]
[1744658644814,6.10065,1639.2,1638.9,0.8185]
[1744658645342,0.8277,1639.3,1639.0,6.10095]
[1744658645533,6.14,1639.4,1639.2,6.10042]
[1744658645741,7.8712542,1639.4,1639.2,12.20081]
[1744658645897,6.14,1639.4,1639.3,6.10016]
[1744658646535,6.14,1639.4,1639.2,13.02815]
[1744658646936,6.14,1639.4,1639.3,6.10016]
[1744658647108,5.568,1639.6,1639.4,6.09975]
[1744658647438,12.4627,1640.1,1639.5,6.91602]
[1744658647660,5.567,1640.1,1639.9,6.0977]
[1744658647944,11.66442,1640.1,1639.8,0.8166]
[1744658648236,11.66442,1640.1,1639.6,6.91548]
[1744658648237,6.09793,1639.9,1639.6,6.91548]
[1744658648405,6.09764,1640.0,1639.7,6.09862]
[1744658648604,1.166464,1640.0,1639.8,6.09819]
[1744658648834,6.09756,1640.0,1639.7,6.09854]
[1744658649053,6.09756,1640.0,1639.7,12.1971]
[1744658649253,11.66437,1640.1,1639.8,6.09817]
[1744658649254,5.567,1640.1,1639.8,6.09817]
[1744658649424,5.567,1640.1,1639.9,6.09781]
[1744658649833,5.567,1640.1,1640.0,6.09756]
[1744658650026,0.05,1640.4,1640.1,6.09691]
[1744658650227,6.0966,1640.3,1639.9,6.88696]
[1744658650445,6.09705,1640.2,1639.9,6.88696]
[1744658650648,12.1932,1640.3,1639.9,6.88696]
[1744658650864,6.09645,1640.3,1639.9,12.98473]
[1744658651165,12.19307,1640.3,1639.9,12.98473]
[1744658651338,6.14614,1640.4,1640.0,6.09756]
[1744658651868,0.05,1640.4,1640.2,6.09681]
[1744658652053,6.0965,1640.3,1640.0,6.09748]
[1744658652260,13.417386,1640.3,1639.9,12.98494]
[1744658652445,6.0965,1640.3,1640.0,6.09753]
[1744658653543,6.0965,1640.3,1640.0,12.19493]
[1744658653747,6.14613,1640.4,1640.1,6.09717]
[1744658653943,6.09646,1640.3,1640.0,6.0974]
[1744658654375,12.24232,1640.4,1640.0,12.19481]
[1744658654687,14.162902,1640.4,1640.0,12.19481]
[1744658654888,0.05,1640.4,1640.1,0.06097078]
[1744658655214,0.05,1640.4,1640.2,6.0965]
[1744658655390,6.14617,1640.4,1640.1,6.09713]
[1744658655692,6.09644,1640.3,1639.9,6.88693]
[1744658655988,6.09644,1640.3,1640.0,6.0974]
[1744658656185,8.168877,1640.4,1640.1,6.09706]
[1744658656350,14.265227,1640.4,1640.0,12.19483]
[1744658656765,6.09644,1640.3,1640.0,12.19484]
[1744658657701,6.14613,1640.4,1640.1,6.09717]
[1744658658000,6.14613,1640.4,1640.1,12.19422]
[1744658658197,6.14613,1640.4,1640.1,6.09704]
[1744658658398,6.14613,1640.4,1640.0,1.298404]
[1744658658399,0.05,1640.4,1640.0,1.298404]
[1744658658702,0.05,1640.4,1640.2,6.09664]
[1744658658904,12.24238,1640.4,1640.1,6.87558]
[1744658659118,6.09666,1640.3,1639.9,6.92345]
[1744658659324,6.09666,1640.3,1639.9,13.02127]
[1744658659677,6.09685,1640.2,1639.9,13.02127]
[1744658659975,14.080698,1640.4,1640.0,12.19474]
[1744658660171,6.09647,1640.3,1640.0,6.09729]
[1744658660397,7.984348,1640.4,1640.1,6.09683]
[1744658660815,14.080738,1640.4,1640.1,6.09683]
[1744658661321,7.984348,1640.4,1640.1,6.09683]
[1744658661518,6.14612,1640.4,1640.1,6.09683]
[1744658661816,6.09649,1640.3,1640.0,6.09745]
[1744658662243,6.09649,1640.3,1639.9,13.02144]
[1744658662523,6.09649,1640.3,1640.0,6.09743]
[1744658662894,6.09649,1640.3,1640.0,6.09754]
[1744658663094,12.19329,1640.3,1640.0,6.09754]
[1744658664093,6.09739,1640.1,1639.9,0.8256]
[1744658664295,6.09739,1640.1,1639.8,6.09819]
[1744658664501,6.09689,1640.2,1639.9,4.0]
[1744658664825,0.8303,1640.1,1639.7,0.7566]
[1744658665127,6.92684,1640.3,1640.0,6.0973]
[1744658665289,3.05,1640.4,1640.0,6.85404]
[1744658665484,6.09666,1640.3,1640.0,0.7566]
[1744658665796,12.19401,1640.2,1639.9,6.09781]
[1744658665997,6.09695,1640.2,1639.9,6.09781]
[1744658666191,1.40703,1640.4,1640.0,6.09756]
[1744658666192,0.05,1640.4,1640.0,6.09756]
[1744658666421,0.05,1640.4,1640.1,6.88956]
[1744658666619,0.05,1640.4,1640.2,6.09669]
[1744658667924,6.1461,1640.4,1640.1,6.88956]
[1744658668432,6.9632,1640.4,1640.0,6.09738]
[1744658668724,12.1932,1640.3,1640.0,6.09738]
[1744658669101,6.09656,1640.3,1640.0,6.09738]
[1744658669293,6.09656,1640.3,1640.0,12.19481]
[1744658669493,6.09656,1640.3,1639.9,0.806]
[1744658669494,6.09656,1640.3,1639.9,6.90382]
[1744658669825,6.09691,1640.2,1639.9,6.9038]
[1744658670127,6.09796,1639.9,1639.6,6.09889]
[1744658670323,6.09796,1639.9,1639.7,4.0]
[1744658670731,6.0987,1639.7,1639.4,12.19912]
[1744658671023,6.85151,1639.8,1639.5,6.0993]
[1744658671240,12.95012,1639.8,1639.4,6.09976]
[1744658671431,6.09878,1639.7,1639.5,4.0]
[1744658671594,6.85151,1639.8,1639.5,10.09924]
[1744658671791,6.85151,1639.8,1639.5,12.1986]
[1744658672814,12.95001,1639.8,1639.5,6.09924]
[1744658673030,6.09901,1639.7,1639.3,12.97196]
[1744658673222,6.10003,1639.4,1639.1,0.7719]
[1744658673531,6.09998,1639.4,1639.1,6.87277]
[1744658673741,12.95241,1639.5,1639.1,12.97356]
[1744658674058,0.7532,1639.5,1639.2,6.10033]
[1744658674341,3.7532,1639.7,1639.4,6.09958]
[1744658674637,0.7532,1639.7,1639.4,6.09958]
[1744658674937,6.0992,1639.6,1639.3,6.10002]
[1744658675140,6.0992,1639.6,1639.1,2.069256]
[1744658675141,0.7532,1639.7,1639.1,8.170126]
[1744658675306,12.19913,1639.5,1639.2,6.10049]
[1744658675505,12.19913,1639.5,1639.1,14.270996]
[1744658675701,6.09983,1639.4,1639.1,8.170126]
[1744658676048,12.20095,1639.3,1638.9,13.01936]
[1744658676333,6.10057,1639.2,1638.9,6.91783]
[1744658676543,13.00417,1639.4,1639.0,12.2024]
[1744658676736,6.10045,1639.3,1639.0,1.30187]
[1744658677039,6.10045,1639.3,1639.0,6.10114]
[1744658677239,0.8043,1639.4,1638.9,3.83601042]
[1744658677402,6.90416,1639.4,1639.0,6.1011]
[1744658677752,6.10044,1639.3,1639.0,6.1011]
[1744658677929,6.10044,1639.3,1639.0,6.79284]
[1744658678305,6.10044,1639.3,1639.0,12.894]
[1744658678502,6.10034,1639.3,1639.0,6.79284]
[1744658678841,6.10034,1639.3,1639.0,6.1011]
[1744658679246,6.10055,1639.2,1638.9,6.91785]
[1744658679446,6.10055,1639.2,1638.9,6.91784]
[1744658680537,6.10123,1639.1,1638.7,6.91576]
[1744658680744,6.10147,1639.0,1638.8,4.0]
[1744658681144,6.91938,1639.1,1638.8,4.0]
[1744658681335,0.8184,1639.1,1638.9,6.10164]
[1744658681543,0.8184,1639.1,1638.8,10.10186]
[1744658681748,6.91942,1639.1,1638.8,10.10186]
[1744658681943,0.8184,1639.1,1638.8,4.0]
[1744658682148,6.10169,1638.9,1638.6,6.10276]
[1744658682339,6.10169,1638.9,1638.7,4.0]
[1744658683053,6.91932,1639.1,1638.7,6.10226]
[1744658683254,6.91932,1639.1,1638.7,12.20453]
[1744658683454,13.02042,1639.1,1638.7,12.20453]
[1744658683664,1.302042,1639.0,1638.7,12.20453]
[1744658683964,0.8184,1639.1,1638.7,2.95870216]
[1744658684175,12.24069,1639.2,1638.8,0.8069]
[1744658684372,6.10095,1639.1,1638.8,13.01094]
[1744658684667,6.10095,1639.1,1638.8,13.01072]
[1744658684866,6.10095,1639.1,1638.8,6.90881]
[1744658685380,14.036244,1639.1,1638.8,6.10191]
[1744658685531,7.935114,1639.1,1638.8,6.10191]
[1744658685874,1.834164,1639.1,1638.9,6.10158]
[1744658686533,5.491,1639.3,1638.9,3.76560216]
[1744658686739,5.491,1639.3,1639.2,6.10053]
[1744658686938,5.491,1639.3,1639.1,6.10073]
[1744658687168,9.92992,1639.5,1639.2,6.10028]
[1744658687473,9.446825,1639.5,1639.2,6.10028]
[1744658687676,9.446825,1639.5,1638.9,9.86723216]
[1744658687677,9.446825,1639.5,1639.1,6.10077]
[1744658687884,6.09981,1639.4,1639.1,12.20154]
[1744658688036,2.48992332,1639.7,1639.2,0.8069]
[1744658688234,11.632,1639.8,1639.6,6.09904]
[1744658688480,6.09761,1640.0,1639.7,6.09867]
[1744658688780,6.09797,1639.9,1639.6,6.09889]
[1744658689161,6.09762,1640.0,1639.7,6.09844]
[1744658689364,2.53610403,1640.0,1639.7,6.09844]
[1744658689877,8.63394403,1640.0,1639.6,12.1979]
[1744658690076,2.53610403,1640.0,1639.8,6.09816]
[1744658690580,2.53610403,1640.0,1639.7,6.09853]
[1744658690741,8.63377403,1640.0,1639.7,6.09853]
[1744658690941,13.16618032,1640.1,1639.5,6.90631]
[1744658691277,12.4624,1640.1,1639.8,6.09823]
[1744658691439,6.0976,1640.0,1639.7,6.09864]
[1744658691867,6.0976,1640.0,1639.7,12.19718]
[1744658692047,12.19536,1640.0,1639.7,6.09854]
[1744658692252,6.0976,1640.0,1639.7,6.09854]
[1744658692810,12.41968,1640.1,1639.8,6.0982]
[1744658692991,14.88533,1640.1,1639.8,6.0982]
[1744658693278,8.78805,1640.1,1639.8,6.09817]
[1744658693453,20.98268,1640.1,1639.8,6.09817]
[1744658693778,14.88525,1640.1,1639.8,6.09817]
[1744658694279,15.49065,1640.1,1639.8,6.09817]
[1744658694470,9.39325,1640.1,1639.8,6.09817]
[1744658694958,15.49069,1640.1,1639.7,6.09858]
[1744658695156,15.49069,1640.1,1639.7,12.19713]
[1744658695359,15.49069,1640.1,1639.7,6.09855]
[1744658695558,6.09757,1640.0,1639.7,6.09855]
[1744658695778,6.09823,1639.9,1639.5,6.90631]
[1744658695979,6.09854,1639.8,1639.4,6.09968]
[1744658697094,6.09878,1639.7,1639.4,6.09968]
[1744658697593,13.00903,1639.9,1639.5,6.0992]
[1744658697900,3.813,1639.9,1639.6,6.09878]
[1744658698098,5.7634883,1639.9,1639.6,6.09878]
[1744658698399,17.9597883,1639.9,1639.5,6.09931]
[1744658698700,6.09831,1639.8,1639.5,6.09931]
[1744658699200,6.09831,1639.8,1639.4,6.0997]
[1744658699394,6.09869,1639.7,1639.4,6.09966]
[1744658699581,7.28448983,1639.8,1639.5,6.09937]
[1744658699786,7.28448983,1639.8,1639.5,6.09932]
[1744658700187,1.18617983,1639.8,1639.5,6.09932]
[1744658700364,9.91102,1639.9,1639.6,6.0989]
[1744658700760,6.09866,1639.8,1639.4,6.09966]
[1744658701185,6.09869,1639.7,1639.4,6.09966]
[1744658701496,3.813,1639.9,1639.5,6.09933]
[1744658701666,6.09848,1639.8,1639.5,6.09933]
[1744658701865,13.188168,1639.8,1639.5,6.09933]
[1744658703300,6.09868,1639.7,1639.4,6.0997]
[1744658703607,6.10028,1639.3,1639.0,6.10118]
[1744658703762,6.10028,1639.3,1639.1,4.0]
[1744658703958,12.97197,1639.3,1639.1,4.0]
[1744658704163,6.65053,1639.2,1639.1,4.0]
[1744658704809,0.55,1639.2,1638.7,0.8016]
[1744658705101,0.55,1639.2,1638.7,9.06109216]
[1744658705102,6.2596,1639.2,1638.7,9.06109216]
[1744658705396,12.36015,1639.2,1638.8,6.90752]
[1744658705603,6.10092,1639.1,1638.8,7.89414222]
[1744658705769,12.36015,1639.2,1638.9,6.10164]
[1744658706365,6.2596,1639.2,1638.7,6.1023]
[1744658706570,12.20299,1639.0,1638.6,12.96922]
[1744658708403,6.10144,1639.0,1638.6,6.86651]
[1744658708708,12.20365,1638.9,1638.6,6.10271]
[1744658708909,6.10173,1638.9,1638.6,6.10271]
[1744658709108,0.8295,1638.9,1638.4,6.92438]
[1744658709406,6.10253,1638.7,1638.5,4.0]
[1744658709908,6.10253,1638.7,1638.4,12.20681]
[1744658710068,12.14402,1638.8,1638.2,0.7786]
[1744658710402,6.10351,1638.4,1638.3,4.0]
[1744658710703,6.93282,1638.5,1638.3,4.0]
[1744658711063,6.9695,1638.7,1638.3,6.16492067]
[1744658711263,6.14,1638.7,1638.6,6.10277]
[1744658711724,6.3215,1638.9,1638.6,6.10277]
[1744658712022,12.42327,1638.9,1638.6,6.10265]
[1744658712790,6.3215,1638.9,1638.7,6.10238]
[1744658712990,6.3215,1638.9,1638.6,6.10265]
[1744658713190,12.42318,1638.9,1638.6,12.20531]
[1744658713510,6.3215,1638.9,1638.8,6.10202]
[1744658713678,3.0,1639.0,1638.8,6.10202]
[1744658713884,6.2663,1639.1,1638.9,6.10163]
[1744658714133,12.36735,1639.1,1638.7,12.2045]
[1744658714307,12.36735,1639.1,1638.7,13.5470031]
[1744658714486,6.2663,1639.1,1638.8,6.10189]
[1744658714686,12.36726,1639.1,1638.7,13.5471031]
[1744658714887,18.46843,1639.1,1638.7,7.4448031]
[1744658715221,6.2663,1639.1,1638.9,6.10143]
[1744658715446,6.2663,1639.1,1638.8,6.1019]
[1744658715747,12.36725,1639.1,1638.8,6.1019]
[1744658716151,6.2663,1639.1,1638.9,6.10153]
[1744658716442,5.492,1639.1,1638.9,6.10153]
[1744658716802,5.492,1639.1,1639.0,6.10128]
[1744658717002,9.8955,1639.3,1639.0,6.10128]
[1744658717003,9.8955,1639.3,1639.0,12.20244]
[1744658717204,9.85588,1639.3,1638.9,6.87534]
[1744658717542,9.9004596,1639.3,1638.8,6.10202]
[1744658717742,3.7555,1639.3,1639.0,6.10096]
[1744658717932,3.7555,1639.3,1639.1,6.1008]
[1744658718241,3.7555,1639.3,1639.0,6.10096]
[1744658718440,3.0,1639.3,1639.1,6.10086]
[1744658718647,7.49407071,1639.3,1639.1,6.10086]
[1744658719945,53.053,1639.4,1639.1,12.20165]
[1744658720126,53.053,1639.4,1639.2,6.10046]
[1744658720447,5.493,1639.4,1639.3,6.10016]
[1744658720745,5.493,1639.4,1639.1,6.10063]
[1744658721046,12.19917,1639.5,1639.1,6.793163]
[1744658721347,6.09957,1639.5,1639.1,12.20142]
[1744658721551,12.1992,1639.5,1639.1,6.10063]
[1744658721841,12.1992,1639.5,1639.1,12.20141]
[1744658722207,6.09908,1639.6,1639.0,0.8247]
[1744658722402,12.3948,1639.7,1639.3,6.09981]
[1744658722637,14.03835644,1639.7,1639.3,6.09981]
[1744658722800,14.03835644,1639.7,1639.4,6.09974]
[1744658723216,14.03835644,1639.7,1639.4,6.09967]
[1744658723413,14.03835644,1639.7,1639.3,6.10009]
[1744658723618,7.34730837,1639.6,1639.2,12.20084]
[1744658723844,7.34730837,1639.6,1639.3,6.10014]
[1744658724071,6.09945,1639.5,1639.1,6.10086]
[1744658724234,7.34721837,1639.6,1639.2,6.10033]
[1744658724545,7.34721837,1639.6,1639.3,6.10004]
[1744658724743,7.34721837,1639.6,1639.2,12.20071]
[1744658725206,7.34721837,1639.6,1639.3,6.10006]
[1744658725407,7.34716837,1639.6,1639.3,6.10006]
[1744658725718,1.24810837,1639.6,1639.4,6.09975]
[1744658725917,12.4143,1640.0,1639.4,6.09979]
[1744658726117,9.09813,1639.9,1639.6,6.09882]
[1744658726356,6.0987,1639.7,1639.4,6.09969]
[1744658726517,6.0987,1639.7,1639.3,6.90525]
[1744658726718,6.09915,1639.6,1639.3,6.90525]
[1744658727024,13.03035,1639.7,1639.4,6.09967]
[1744658727237,8.3191153,1639.7,1639.4,6.09967]
[1744658727543,2.2204153,1639.7,1639.4,6.09967]
[1744658727748,9.86408,1639.9,1639.5,6.09939]
[1744658728056,0.55,1639.8,1639.3,6.90524]
[1744658728349,0.55,1639.8,1639.2,12.20083]
[1744658728350,12.19857,1639.6,1639.2,12.20083]
[1744658728553,6.09925,1639.6,1639.3,6.09992]
[1744658729219,3.0,1639.7,1639.4,6.09953]
[1744658729410,3.0,1639.7,1639.5,6.09914]
[1744658729812,9.09873,1639.7,1639.4,6.09972]
[1744658730011,15.19773,1639.7,1639.3,6.10005]
[1744658730253,16.854323,1639.7,1639.3,6.10005]
[1744658730464,16.854323,1639.7,1639.3,12.2001]
[1744658730664,16.854323,1639.7,1639.3,6.10005]
[1744658730665,6.09906,1639.6,1639.3,6.10005]
[1744658731256,12.19839,1639.6,1639.2,12.2009]
[1744658731455,6.09906,1639.6,1639.2,6.10042]
[1744658731657,7.1746253,1639.6,1639.2,6.10042]
[1744658731845,6.09946,1639.5,1639.2,12.20085]
[1744658732630,9.09875,1639.7,1639.4,6.09975]
[1744658732959,8.491,1639.7,1639.4,12.19944]
[1744658733259,14.58967,1639.7,1639.4,6.09969]
[1744658733848,8.491,1639.7,1639.4,12.19936]
[1744658734022,8.491,1639.7,1639.5,6.09939]
[1744658734752,12.19855,1639.6,1639.2,12.95904]
[1744658735538,9.3865794,1639.7,1639.1,6.10088]
[1744658735738,12.19951,1639.5,1639.2,4.0]
[1744658736037,12.20024,1639.4,1639.2,4.0]
[1744658736242,14.199694,1639.3,1638.9,12.20308]
[1744658736442,14.199694,1639.3,1639.0,6.10123]
[1744658736443,6.87916,1639.3,1639.0,6.10123]
[1744658736642,12.97967,1639.3,1639.0,6.10123]
[1744658736851,6.10058,1639.2,1638.9,6.10153]
[1744658737055,6.10058,1639.2,1639.0,4.0]
[1744658737243,6.10058,1639.2,1638.9,6.10153]
[1744658737460,12.20129,1639.2,1638.9,6.10153]
[1744658737991,6.10058,1639.2,1638.9,6.10153]
[1744658738668,12.20128,1639.2,1638.9,6.10153]
[1744658739234,6.10091,1639.1,1638.8,6.10191]
[1744658739430,1.847128,1639.2,1638.7,7.4447931]
[1744658739431,7.947748,1639.2,1638.9,6.10162]
[1744658739771,12.37025,1639.3,1639.0,6.10103]
[1744658739951,6.27,1639.3,1638.9,0.7902]
[1744658740151,6.10106,1639.1,1638.9,0.7902]
[1744658740534,6.10106,1639.1,1638.8,12.20394]
[1744658741592,12.20135,1639.2,1638.8,12.20394]
[1744658742070,6.10063,1639.2,1638.8,6.10192]
[1744658742277,13.95787805,1639.3,1639.0,6.10124]
[1744658742770,20.05818805,1639.3,1639.0,6.10124]
[1744658743180,7.85763805,1639.3,1639.0,6.10124]
[1744658743475,5.491,1639.3,1639.1,6.10089]
[1744658743777,11.631,1639.6,1639.3,12.19988]
[1744658744164,11.631,1639.6,1639.4,6.09976]
[1744658744551,6.09942,1639.5,1639.2,6.10041]
[1744658744782,6.10026,1639.3,1639.0,6.88173]
[1744658744938,0.7528,1639.4,1638.9,6.10154]
[1744658745270,6.10075,1639.2,1639.0,4.0]
[1744658745477,12.20151,1639.2,1638.9,6.10154]
[1744658745654,6.10075,1639.2,1638.9,13.501502]
[1744658745976,6.69,1639.3,1638.8,0.7806]
[1744658746162,6.69,1639.3,1638.5,6.88443]
[1744658746163,6.86765,1638.9,1638.5,6.88443]
[1744658746476,6.86765,1638.9,1638.7,4.0]
[1744658746639,6.86765,1638.9,1638.4,6.1034]
[1744658746640,6.10239,1638.7,1638.4,6.1034]
[1744658746844,6.10239,1638.7,1638.4,12.2068]
[1744658747039,12.96944,1638.9,1638.5,12.20614]
[1744658747247,6.10212,1638.8,1638.5,6.10303]
[1744658747653,6.10202,1638.8,1638.4,6.10343]
[1744658747886,6.10256,1638.7,1638.3,6.89215]
[1744658748181,12.203762,1638.7,1638.3,12.99588]
[1744658748391,6.93233,1638.6,1638.2,6.10423]
[1744658748560,6.10325,1638.5,1638.1,12.96538]
[1744658748945,13.07231,1638.6,1638.2,4.0]
[1744658749161,15.5998972,1638.6,1638.2,4.0]
[1744658749353,9.4970972,1638.6,1638.3,6.10365]
[1744658749559,6.9695,1638.6,1638.4,6.10338]
[1744658749894,6.14,1638.6,1638.4,6.10338]
[1744658750245,6.14,1638.6,1638.4,12.20677]
[1744658750871,5.491,1638.7,1638.2,0.0610352]
[1744658751183,5.491,1638.7,1638.6,6.10277]
[1744658751380,11.5934,1638.7,1638.5,0.7727]
[1744658751548,5.491,1638.7,1638.5,0.7727]
[1744658751750,5.491,1638.7,1638.4,6.10321]
[1744658751956,5.491,1638.7,1638.5,6.10311]
[1744658753558,5.491,1638.7,1638.5,6.10302]
[1744658753758,5.491,1638.7,1638.6,6.10277]
[1744658754384,5.491,1638.7,1638.5,12.20604]
[1744658754547,5.491,1638.7,1638.6,6.10277]
[1744658755168,5.491,1638.7,1638.5,6.10302]
[1744658756887,5.491,1638.7,1638.6,6.10277]
[1744658757374,5.491,1638.7,1638.3,0.8025]
[1744658757756,5.491,1638.7,1638.5,6.10296]
[1744658757946,5.491,1638.7,1638.5,12.20598]
[1744658758274,5.491,1638.7,1638.5,6.10296]
[1744658758482,5.491,1638.7,1638.5,12.20598]
[1744658759291,5.491,1638.7,1638.5,6.10296]
[1744658760073,5.491,1638.7,1638.3,13.01011]
[1744658760074,6.89112,1638.6,1638.3,13.01011]
[1744658760275,6.89112,1638.6,1638.3,6.90627]
[1744658760662,12.99402,1638.6,1638.3,6.10377]
[1744658760861,6.8911,1638.6,1638.3,6.10388]
[1744658761052,6.1034,1638.5,1638.1,6.889]
[1744658761279,0.7924,1638.4,1637.9,0.8173]
[1744658761592,0.7924,1638.4,1637.8,6.10572]
[1744658761593,6.89718,1638.1,1637.8,6.10572]
[1744658761817,6.89718,1638.1,1637.9,4.0]
[1744658762027,6.105,1638.0,1637.9,4.0]
[1744658762193,12.21027,1638.0,1637.6,12.21292]
[1744658762522,6.10553,1637.9,1637.6,6.10638]
[1744658762729,6.89706,1638.1,1637.7,4.0]
[1744658762892,0.7924,1638.1,1637.9,6.10522]
[1744658763090,0.7924,1638.1,1637.8,6.10561]
[1744658763414,0.7924,1638.1,1637.9,6.10535]
[1744658763622,0.7924,1638.1,1637.9,12.21057]
[1744658763786,12.3859,1638.4,1638.2,6.10411]
[1744658764130,5.493,1638.4,1638.2,6.10423]
[1744658764283,11.59679,1638.4,1638.0,12.20984]
[1744658764485,11.59679,1638.4,1638.1,6.10446]
[1744658764486,5.493,1638.4,1638.1,6.10446]
[1744658765411,5.493,1638.4,1638.2,6.10424]
[1744658765785,11.59655,1638.4,1638.1,6.10446]
[1744658767324,17.70022,1638.4,1638.1,6.10446]
[1744658767525,17.70022,1638.4,1638.0,12.20984]
[1744658767724,11.59655,1638.4,1638.1,12.20911]
[1744658768091,5.493,1638.4,1638.2,6.10402]
[1744658768288,5.493,1638.4,1638.2,12.20817]
[1744658768483,5.493,1638.4,1638.2,12.20816]
[1744658768689,5.493,1638.4,1638.2,6.10402]
[1744658768923,11.59656,1638.4,1638.1,6.10459]
[1744658769124,13.441804,1638.4,1638.1,6.10459]
[1744658769333,13.441804,1638.4,1638.1,6.1045]
[1744658769534,7.338244,1638.4,1638.2,6.10415]
[1744658769720,5.493,1638.4,1638.2,6.10422]
[1744658769917,5.493,1638.4,1638.2,12.20835]
[1744658770120,5.493,1638.4,1638.1,6.10454]
[1744658770331,11.59661,1638.4,1638.1,6.10454]
[1744658770743,17.70046,1638.4,1638.0,12.20984]
[1744658771035,0.7588,1638.2,1637.8,6.1054]
[1744658771210,6.86308,1638.2,1637.9,4.0]
[1744658771406,6.10477,1638.1,1637.9,4.0]
[1744658772050,6.10477,1638.1,1637.8,6.1054]
[1744658772258,6.10477,1638.1,1637.6,6.10639]
[1744658772259,0.55,1638.1,1637.6,6.10639]
[1744658772440,6.91985,1637.8,1637.7,4.0]
[1744658772750,13.0258,1637.8,1637.5,0.3966834]
[1744658773044,8.22243,1637.8,1637.5,6.5035334]
[1744658773252,2.11668,1637.8,1637.5,0.3966834]
[1744658773453,2.11668,1637.8,1637.6,6.10618]
[1744658773454,0.8141,1637.8,1637.6,6.10618]
[1744658773753,6.3028,1638.0,1637.7,6.10587]
[1744658773933,6.3028,1638.0,1637.8,6.10544]
[1744658774133,6.3028,1638.0,1637.8,12.21099]
[1744658774315,6.3028,1638.0,1637.8,6.10544]
[1744658775226,12.40782,1638.0,1637.7,12.99992]
[1744658775440,6.10551,1637.9,1637.6,6.10646]
[1744658775627,6.87403,1637.7,1637.5,0.3966834]
[1744658775856,0.7679,1637.7,1637.5,0.3966834]
[1744658776215,0.7679,1637.7,1637.5,6.5035334]
[1744658776535,3.816,1637.9,1637.6,6.10649]
[1744658776722,0.816,1637.9,1637.5,1.65773774]
[1744658776927,0.816,1637.9,1637.7,6.10594]
[1744658777915,11.59806,1638.0,1637.7,6.10594]
[1744658777916,12.41956,1638.0,1637.7,6.10594]
[1744658778216,18.52473,1638.0,1637.7,6.10594]
[1744658778417,6.10538,1637.9,1637.6,6.91481]
[1744658778849,6.10538,1637.9,1637.5,7.76453774]
[1744658779146,6.10538,1637.9,1637.5,0.3966834]
[1744658779147,6.1059,1637.8,1637.5,0.3966834]
[1744658779348,12.21179,1637.8,1637.5,0.3966834]
[1744658779757,0.8215,1637.7,1637.5,0.3966834]
[1744658780253,12.24585,1637.8,1637.5,7.3118834]
[1744658780465,6.14,1637.8,1637.5,7.3118634]
[1744658780660,6.14,1637.8,1637.6,6.10636]
[1744658780854,6.14,1637.8,1637.5,1.2050834]
[1744658781052,12.24601,1637.8,1637.5,1.2050834]
[1744658781254,6.10617,1637.7,1637.5,0.3966834]
[1744658781556,13.852561,1637.8,1637.5,0.3966834]
[1744658781962,6.10613,1637.7,1637.5,0.3966834]
[1744658782458,6.14,1637.8,1637.6,6.85985]
[1744658782665,18.96579,1637.8,1637.5,6.5034434]
[1744658782864,12.85978,1637.8,1637.5,6.5034434]
[1744658783024,6.14,1637.8,1637.5,6.5034234]
[1744658783354,6.14,1637.8,1637.5,0.3966834]
[1744658783558,6.10615,1637.7,1637.5,0.3966834]
[1744658783862,6.9408,1637.8,1637.5,0.3966834]
[1744658784037,6.14,1637.8,1637.5,6.5034934]
[1744658784242,6.14,1637.8,1637.5,6.5034434]
[1744658784448,6.14,1637.8,1637.7,6.10612]
[1744658784739,6.14,1637.8,1637.7,6.93172]
[1744658785047,6.14,1637.8,1637.6,6.10631]
[1744658785363,6.14,1637.8,1637.6,12.2127]
[1744658785573,6.14,1638.3,1638.2,6.10426]
[1744658785721,6.1044,1638.2,1638.0,0.8288]
[1744658786069,6.1044,1638.2,1637.5,4.54555011]
[1744658786070,7.34902,1638.3,1637.8,0.8288]
[1744658786233,12.41441,1638.4,1638.0,12.20975]
[1744658786234,18.55441,1638.4,1638.0,12.20975]
[1744658786438,6.10389,1638.3,1638.0,12.20975]
[1744658786638,12.4508,1638.4,1638.1,12.20907]
[1744658786861,5.495,1638.4,1638.2,6.10412]
[1744658787099,11.59872,1638.4,1638.1,6.10452]
[1744658787298,0.7833,1638.3,1637.9,6.10523]
[1744658787501,0.7833,1638.3,1637.7,6.10601]
[1744658787502,6.10503,1638.0,1637.7,6.10601]
[1744658787705,6.10552,1637.9,1637.6,0.778]
[1744658787999,6.92503,1638.0,1637.7,12.21184]
[1744658788355,6.10539,1637.9,1637.6,6.88431]
[1744658788555,0.82,1638.0,1637.6,0.778]
[1744658788757,12.2443,1638.2,1637.9,6.10515]
[1744658788758,6.9293,1638.2,1637.9,6.10515]
[1744658788995,6.14,1638.2,1638.1,6.10463]
[1744658789152,19.651452,1638.4,1638.1,6.10463]